fUST/lending_fUST_20240115
["ID","MTS","AMOUNT","RATE_DAILY","PERIOD"]
[311626165,1705267842857,-500.0,0.00027671,2]
[311626166,1705267842867,-803.57,0.00027671,2]
[311626167,1705267842876,-500.0,0.00027671,2]
[311626168,1705267842886,-500.0,0.00027671,2]
[311626169,1705267842895,-500.0,0.00027671,2]
[311626170,1705267842904,-500.0,0.00027671,2]
[311626171,1705267842913,-500.0,0.00027671,2]
[311626172,1705267842926,-500.0,0.00027671,2]
[311626173,1705267842935,-2480.2,0.00027671,2]
[311626174,1705267842944,-500.0,0.00027671,2]
[311626175,1705267842953,-2472.85,0.00027671,2]
[311626176,1705267842963,-443.16856451,0.00027671,2]
[311626177,1705267842972,-500.0,0.00027671,2]
[311626178,1705267842981,-500.0,0.00027671,2]
[311626179,1705267842991,-1164.47,0.00027671,2]
[311626180,1705267843001,-500.0,0.00027671,2]
[311626181,1705267843011,-1637.98,0.00027671,2]
[311626182,1705267843020,-538.99,0.00027671,2]
[311626183,1705267843029,-1516.64,0.00027671,2]
[311626184,1705267843037,-500.0,0.00027671,2]
[311626185,1705267843047,-500.0,0.00027671,2]
[311626186,1705267843056,-640.55,0.00027671,2]
[311626187,1705267843065,-500.0,0.00027671,2]
[311626188,1705267843074,-500.0,0.00027671,2]
[311626189,1705267843084,-500.0,0.00027671,2]
[311626190,1705267843095,-500.0,0.00027671,2]
[311626191,1705267843104,-500.0,0.00027671,2]
[311626192,1705267843113,-500.0,0.00027671,2]
[311626193,1705267843122,-605.78919628,0.00027671,2]
[311626194,1705267843131,-3077.17,0.00027671,2]
[311626195,1705267843140,-504.32,0.00027671,2]
[311626196,1705267843150,-1567.21,0.00027671,2]
[311626197,1705267843159,-500.0,0.00027671,2]
[311626198,1705267843170,-500.0,0.00027671,2]
[311626199,1705267843179,-500.0,0.00027671,2]
[311626200,1705267843188,-500.0,0.00027671,2]
[311626201,1705267843197,-824.13,0.00027671,2]
[311626202,1705267843206,-500.0,0.00027671,2]
[311626203,1705267843215,-500.0,0.00027671,2]
[311626204,1705267843225,-757.46,0.00027671,2]
[311626205,1705267843234,-500.0,0.00027671,2]
[311626206,1705267843243,-501.32,0.00027671,2]
[311626207,1705267843253,-500.0,0.00027671,2]
[311626208,1705267843262,-500.0,0.00027671,2]
[311626209,1705267843271,-500.0,0.00027671,2]
[311626210,1705267843281,-500.0,0.00027671,2]
[311626211,1705267843290,-500.0,0.00027671,2]
[311626212,1705267843300,-500.0,0.00027671,2]
[311626213,1705267843309,-500.0,0.00027671,2]
[311626214,1705267843318,-19222.91,0.00027671,2]
[311626215,1705267843328,-500.0,0.00027671,2]
[311626216,1705267843337,-500.0,0.00027671,2]
[311626217,1705267843346,-500.0,0.00027671,2]
[311626218,1705267843355,-2213.26,0.00027671,2]
[311626219,1705267843365,-1233.06,0.00027671,2]
[311626220,1705267843374,-500.0,0.00027671,2]
[311626221,1705267843382,-844.87,0.00027671,2]
[311626222,1705267843392,-911.56,0.00027671,2]
[311626223,1705267843401,-7390.99,0.00027671,2]
[311626224,1705267843410,-500.0,0.00027671,2]
[311626225,1705267843419,-700.03,0.00027671,2]
[311626226,1705267843428,-1465.09,0.00027671,2]
[311626227,1705267843437,-500.0,0.00027671,2]
[311626228,1705267843446,-500.0,0.00027671,2]
[311626229,1705267843456,-906.06,0.00027671,2]
[311626230,1705267843465,-502.32,0.00027671,2]
[311626231,1705267843474,-1279.13,0.00027671,2]
[311626232,1705267843482,-500.0,0.00027671,2]
[311626233,1705267843491,-500.0,0.00027671,2]
[311626234,1705267843500,-27415.27,0.00027671,2]
[311626235,1705267843509,-500.0,0.00027671,2]
[311626236,1705267843518,-500.0,0.00027671,2]
[311626237,1705267843527,-500.0,0.00027671,2]
[311626238,1705267843536,-6461.86,0.00027671,2]
[311626239,1705267843545,-500.0,0.00027671,2]
[311626240,1705267843554,-500.0,0.00027671,2]
[311626241,1705267843562,-500.0,0.00027671,2]
[311626242,1705267843572,-500.0,0.00027671,2]
[311626243,1705267843581,-500.0,0.00027671,2]
[311626244,1705267843591,-500.0,0.00027671,2]
[311626245,1705267843600,-500.0,0.00027671,2]
[311626246,1705267843608,-500.0,0.00027671,2]
[311626247,1705267843617,-500.0,0.00027671,2]
[311626248,1705267843627,-500.0,0.00027671,2]
[311626249,1705267843635,-500.0,0.00027671,2]
[311626250,1705267843644,-500.0,0.00027671,2]
[311626251,1705267843654,-500.0,0.00027671,2]
[311626252,1705267843663,-500.0,0.00027671,2]
[311626253,1705267843674,-688.18928243,0.000277,2]
[311626254,1705267843683,-620.02015096,0.0002772,2]
[311626255,1705267843693,-500.0,0.00027808,2]
[311626256,1705267843703,-35653.01739407,0.00027845,2]
[311626257,1705267843712,-1631.08,0.00027944,2]
[311626258,1705267843722,-6740.03,0.00027944,2]
[311626259,1705267843731,-8764.75,0.00027944,2]
[311626260,1705267843741,-3981.79,0.00027944,2]
[311626261,1705267843750,-500.0,0.00027945,2]
[311626262,1705267843760,-500.0,0.00027945,2]
[311626263,1705267843769,-603.3,0.00027945,2]
[311626264,1705267843779,-500.0,0.00027945,2]
[311626265,1705267843788,-1522.73,0.00027945,2]
[311626266,1705267843798,-500.0,0.00027945,2]
[311626267,1705267843808,-301.46968522,0.00027945,2]
[311626268,1705267843817,-660.62,0.00027945,2]
[311626269,1705267843826,-500.0,0.00027945,2]
[311626270,1705267843835,-500.0,0.00027945,2]
[311626271,1705267843849,-500.0,0.00027945,2]
[311626273,1705267843859,-500.0,0.00027945,2]
[311626274,1705267843868,-1332.26,0.00027945,2]
[311626275,1705267843878,-500.0,0.00027945,2]
[311626277,1705267843887,-266.20845407,0.00027945,2]
[311626279,1705267843896,-500.0,0.00027945,2]
[311626281,1705267843905,-500.0,0.00027945,2]
[311626282,1705267843914,-500.0,0.00027945,2]
[311626283,1705267843923,-500.0,0.00027945,2]
[311626285,1705267843932,-530.46,0.00027945,2]
[311626287,1705267843943,-944.93,0.00027945,2]
[311626289,1705267843952,-2129.9,0.00027945,2]
[311626291,1705267843962,-578.87,0.00027945,2]
[311626292,1705267843971,-500.0,0.00027945,2]
[311626293,1705267843981,-729.88,0.00027945,2]
[311626294,1705267843990,-500.0,0.00027945,2]
[311626295,1705267843999,-1287.1,0.00027945,2]
[311626296,1705267844008,-500.0,0.00027945,2]
[311626298,1705267844018,-765.32,0.00027945,2]
[311626299,1705267844027,-500.0,0.00027945,2]
[311626301,1705267844036,-151.3743688,0.00027945,2]
[311626303,1705267844044,-500.0,0.00027945,2]
[311626304,1705267844054,-1188.14,0.00027945,2]
[311626306,1705267844063,-500.0,0.00027945,2]
[311626308,1705267844072,-803.57,0.00027945,2]
[311626310,1705267844082,-500.0,0.00027945,2]
[311626311,1705267844094,-500.0,0.00027945,2]
[311626313,1705267844103,-500.0,0.00027945,2]
[311626314,1705267844113,-500.0,0.00027945,2]
[311626316,1705267844122,-500.0,0.00027945,2]
[311626318,1705267844132,-2480.2,0.00027945,2]
[311626320,1705267844142,-500.0,0.00027945,2]
[311626322,1705267844152,-2472.85,0.00027945,2]
[311626324,1705267844161,-500.0,0.00027945,2]
[311626325,1705267844170,-500.0,0.00027945,2]
[311626327,1705267844179,-1164.47,0.00027945,2]
[311626329,1705267844188,-500.0,0.00027945,2]
[311626331,1705267844198,-1637.98,0.00027945,2]
[311626333,1705267844207,-538.99,0.00027945,2]
[311626335,1705267844216,-1516.64,0.00027945,2]
[311626336,1705267844226,-629.07086596,0.00027945,2]
[311626338,1705267844236,-500.0,0.00027945,2]
[311626340,1705267844245,-640.55,0.00027945,2]
[311626342,1705267844254,-500.0,0.00027945,2]
[311626344,1705267844264,-500.0,0.00027945,2]
[311626345,1705267844273,-500.0,0.00027945,2]
[311626346,1705267844287,-3077.17,0.00027945,2]
[311626347,1705267844296,-504.32,0.00027945,2]
[311626348,1705267844306,-1567.21,0.00027945,2]
[311626349,1705267844315,-500.0,0.00027945,2]
[311626351,1705267844324,-170.11902549,0.00027945,2]
[311626353,1705267844334,-201.42102991,0.00027945,2]
[311626355,1705267844350,-500.0,0.00027945,2]
[311626357,1705267844359,-824.13,0.00027945,2]
[311626359,1705267844370,-500.0,0.00027945,2]
[311626360,1705267844380,-757.46,0.00027945,2]
[311626362,1705267844389,-500.0,0.00027945,2]
[311626364,1705267844400,-501.32,0.00027945,2]
[311626365,1705267844409,-500.0,0.00027945,2]
[311626366,1705267844419,-500.0,0.00027945,2]
[311626367,1705267844429,-500.0,0.00027945,2]
[311626368,1705267844438,-500.0,0.00027945,2]
[311626369,1705267844448,-500.0,0.00027945,2]
[311626371,1705267844457,-19222.91,0.00027945,2]
[311626372,1705267844466,-500.0,0.00027945,2]
[311626373,1705267844476,-500.0,0.00027945,2]
[311626374,1705267844485,-2213.26,0.00027945,2]
[311626375,1705267844494,-1233.06,0.00027945,2]
[311626376,1705267844503,-500.0,0.00027945,2]
[311626377,1705267844513,-844.87,0.00027945,2]
[311626378,1705267844522,-911.56,0.00027945,2]
[311626379,1705267844531,-7390.99,0.00027945,2]
[311626380,1705267844541,-500.0,0.00027945,2]
[311626381,1705267844550,-700.03,0.00027945,2]
[311626382,1705267844559,-1465.09,0.00027945,2]
[311626383,1705267844644,-500.0,0.00027945,2]
[311626384,1705267844654,-500.0,0.00027945,2]
[311626385,1705267844663,-906.06,0.00027945,2]
[311626386,1705267844672,-502.32,0.00027945,2]
[311626387,1705267844681,-1279.13,0.00027945,2]
[311626388,1705267844690,-500.0,0.00027945,2]
[311626389,1705267844699,-500.0,0.00027945,2]
[311626390,1705267844709,-27415.27,0.00027945,2]
[311626391,1705267844718,-507.50239065,0.00027945,2]
[311626392,1705267844727,-500.0,0.00027945,2]
[311626393,1705267844737,-6461.86,0.00027945,2]
[311626394,1705267844747,-500.0,0.00027945,2]
[311626395,1705267844756,-500.0,0.00027945,2]
[311626396,1705267844765,-500.0,0.00027945,2]
[311626397,1705267844775,-500.0,0.00027945,2]
[311626398,1705267844785,-500.0,0.00027945,2]
[311626399,1705267844794,-616.08704125,0.00027945,2]
[311626400,1705267844803,-500.0,0.00027945,2]
[311626401,1705267844814,-500.0,0.00027945,2]
[311626402,1705267844823,-500.0,0.00027945,2]
[311626404,1705267844832,-500.0,0.00028217,4]
[311626405,1705267844846,-477.39420188,0.00028217,4]
[311626406,1705267844855,-470.4,0.00028217,4]
[311626407,1705267844865,-496.72617691,0.00028217,4]
[311626408,1705267844874,-258.11712698,0.00028217,4]
[311626409,1705267844884,-1631.08,0.00028218,2]
[311626410,1705267844893,-6740.03,0.00028218,2]
[311626411,1705267844903,-8764.75,0.00028218,2]
[311626412,1705267844913,-3981.79,0.00028218,2]
[311626413,1705267844923,-474.51794372,0.00028219,2]
[311626414,1705267844933,-500.0,0.00028219,2]
[311626415,1705267844943,-603.3,0.00028219,2]
[311626416,1705267844952,-274.48615119,0.00028219,2]
[311626417,1705267844963,-1522.73,0.00028219,2]
[311626418,1705267844972,-500.0,0.00028219,2]
[311626419,1705267844982,-660.62,0.00028219,2]
[311626420,1705267844992,-500.0,0.00028219,2]
[311626421,1705267845003,-500.0,0.00028219,2]
[311626422,1705267845012,-643.66658219,0.00028219,2]
[311626423,1705267845022,-1332.26,0.00028219,2]
[311626424,1705267845031,-500.0,0.00028219,2]
[311626426,1705267845040,-500.0,0.00028219,2]
[311626428,1705267845049,-500.0,0.00028219,2]
[311626430,1705267845059,-500.0,0.00028219,2]
[311626432,1705267845069,-530.46,0.00028219,2]
[311626433,1705267845078,-944.93,0.00028219,2]
[311626434,1705267845088,-578.87,0.00028219,2]
[311626435,1705267845099,-2129.9,0.00028219,2]
[311626436,1705267845108,-500.0,0.00028219,2]
[311626437,1705267845118,-729.88,0.00028219,2]
[311626438,1705267845128,-500.0,0.00028219,2]
[311626439,1705267845138,-1287.1,0.00028219,2]
[311626440,1705267845147,-500.0,0.00028219,2]
[311626441,1705267845157,-765.32,0.00028219,2]
[311626442,1705267845166,-500.0,0.00028219,2]
[311626443,1705267845175,-500.0,0.00028219,2]
[311626444,1705267845185,-1188.14,0.00028219,2]
[311626445,1705267845194,-500.0,0.00028219,2]
[311626446,1705267845203,-803.57,0.00028219,2]
[311626447,1705267845212,-500.0,0.00028219,2]
[311626448,1705267845221,-500.0,0.00028219,2]
[311626449,1705267845230,-317.89344166,0.00028219,2]
[311626450,1705267845239,-500.0,0.00028219,2]
[311626451,1705267845248,-2480.2,0.00028219,2]
[311626452,1705267845257,-500.0,0.00028219,2]
[311626453,1705267845266,-2472.85,0.00028219,2]
[311626454,1705267845276,-500.0,0.00028219,2]
[311626455,1705267845285,-500.0,0.00028219,2]
[311626456,1705267845294,-1164.47,0.00028219,2]
[311626457,1705267845304,-1637.98,0.00028219,2]
[311626458,1705267845313,-538.99,0.00028219,2]
[311626459,1705267845322,-1516.64,0.00028219,2]
[311626460,1705267845331,-500.0,0.00028219,2]
[311626462,1705267845342,-640.55,0.00028219,2]
[311626463,1705267845353,-500.0,0.00028219,2]
[311626464,1705267845361,-500.0,0.00028219,2]
[311626465,1705267845370,-500.0,0.00028219,2]
[311626466,1705267845379,-3077.17,0.00028219,2]
[311626467,1705267845389,-504.32,0.00028219,2]
[311626468,1705267845398,-1567.21,0.00028219,2]
[311626469,1705267845408,-500.0,0.00028219,2]
[311626470,1705267845417,-500.0,0.00028219,2]
[311626471,1705267845426,-824.13,0.00028219,2]
[311626472,1705267845435,-500.0,0.00028219,2]
[311626473,1705267845445,-757.46,0.00028219,2]
[311626474,1705267845454,-338.42224322,0.00028219,2]
[311626475,1705267845698,-759.45,0.00027387,3]
[311626476,1705267845707,-1079.75,0.00027397,2]
[311626477,1705267845717,-509.40069482,0.00027397,2]
[311626478,1705267845726,-1079.75,0.00027671,2]
[311626479,1705267845735,-1079.75,0.00027945,2]
[311626480,1705267845744,-161.57775678,0.00028219,2]
[311626481,1705267845753,-500.0,0.00028219,2]
[311626482,1705267845762,-501.32,0.00028219,2]
[311626483,1705267845771,-500.0,0.00028219,2]
[311626484,1705267845781,-339.64201464,0.00028219,2]
[311626485,1705267845790,-500.0,0.00028219,2]
[311626486,1705267845800,-4111.2494798,0.00028219,2]
[311626487,1705267845811,-15111.6605202,0.00028219,2]
[311626488,1705267845821,-500.0,0.00028219,2]
[311626489,1705267845830,-2213.26,0.00028219,2]
[311626490,1705267845838,-1233.06,0.00028219,2]
[311626491,1705267845849,-500.0,0.00028219,2]
[311626492,1705267845858,-844.87,0.00028219,2]
[311626493,1705267845868,-911.56,0.00028219,2]
[311626494,1705267845877,-500.0,0.00028219,2]
[311626495,1705267845886,-7390.99,0.00028219,2]
[311626496,1705267845895,-700.03,0.00028219,2]
[311626497,1705267845904,-1465.09,0.00028219,2]
[311626498,1705267845915,-500.0,0.00028219,2]
[311626499,1705267845924,-906.06,0.00028219,2]
[311626500,1705267845933,-502.32,0.00028219,2]
[311626501,1705267845942,-1279.13,0.00028219,2]
[311626502,1705267845952,-500.0,0.00028219,2]
[311626503,1705267845962,-500.0,0.00028219,2]
[311626504,1705267845971,-21025.99540582,0.00028219,2]
[311626505,1705267845983,-4178.06090284,0.00028219,2]
[311626506,1705267845994,-305.75,0.00028219,2]
[311626507,1705267846005,-362.68449822,0.00028219,2]
[311626508,1705267846016,-1542.77919312,0.00028219,2]
[311626509,1705267846025,-6163.20967464,0.00028219,2]
[311626510,1705267846036,-298.65032536,0.00028219,2]
[311626511,1705267846046,-500.0,0.00028219,2]
[311626512,1705267846055,-500.0,0.00028219,2]
[311626513,1705267846063,-226.88446892,0.00028219,2]
[311626730,1705269033286,-1044.83328699,0.00025641,2]
[311626731,1705269033296,-155.02325349,0.00025641,4]
[311626732,1705269033305,-1230.62293058,0.00025642,2]
[311626733,1705269033314,-475.38770163,0.00027395,2]
[311626734,1705269033351,-24.61229837,0.00027395,2]
[311626735,1705269033361,-273.96352238,0.00027395,2]
[311626736,1705269033371,-119.94180542,0.00027396,2]
[311626738,1705269033382,-646.08702145,0.00027396,2]
[311626811,1705269039043,-1327.73304141,0.00027396,2]
[311626813,1705269039052,-500.0,0.00027397,2]
[311626815,1705269039061,-500.0,0.00027397,2]
[311626817,1705269039070,-500.0,0.00027397,2]
[311626819,1705269039079,-500.0,0.00027397,2]
[311626821,1705269039089,-500.0,0.00027397,2]
[311626823,1705269039097,-500.0,0.00027397,2]
[311626825,1705269039106,-500.0,0.00027397,2]
[311626827,1705269039115,-500.0,0.00027397,2]
[311626829,1705269039124,-500.0,0.00027397,2]
[311626831,1705269039133,-500.0,0.00027397,2]
[311626833,1705269039142,-735.27,0.00027397,2]
[311626835,1705269039151,-359.68166785,0.00027397,2]
[311626837,1705269039160,-1401.4,0.00027397,2]
[311626839,1705269039169,-503.8784956,0.00027397,2]
[311626841,1705269039179,-500.0,0.00027397,2]
[311626843,1705269039189,-500.0,0.00027397,2]
[311626845,1705269039198,-500.0,0.00027397,2]
[311626847,1705269039207,-500.0,0.00027397,2]
[311626849,1705269039217,-500.0,0.00027397,2]
[311626851,1705269039226,-508.19510463,0.00027397,2]
[311626853,1705269039235,-187.83149866,0.00027397,2]
[311626855,1705269039244,-500.0,0.00027397,2]
[311626857,1705269039253,-500.0,0.00027397,2]
[311626859,1705269039261,-519.99430236,0.00027397,2]
[311626861,1705269039270,-1033.36,0.00027397,2]
[311626863,1705269039279,-500.0,0.00027397,2]
[311626865,1705269039289,-500.0,0.00027397,2]
[311626866,1705269039297,-500.0,0.00027397,2]
[311626868,1705269039307,-529.01792933,0.00027397,2]
[311626870,1705269039316,-500.0,0.00027397,2]
[311626872,1705269039326,-500.0,0.00027397,2]
[311626874,1705269039334,-275.23629998,0.00027397,2]
[311626876,1705269039343,-500.0,0.00027397,2]
[311626878,1705269039354,-500.0,0.00027397,2]
[311626880,1705269039362,-500.0,0.00027397,2]
[311626882,1705269039372,-500.0,0.00027397,2]
[311626883,1705269039381,-809.67,0.00027397,2]
[311626885,1705269039390,-500.0,0.00027397,2]
[311626887,1705269039401,-500.0,0.00027397,2]
[311626889,1705269039410,-500.0,0.00027397,2]
[311626891,1705269039419,-500.0,0.00027397,2]
[311626892,1705269039428,-500.0,0.00027397,2]
[311626894,1705269039437,-500.0,0.00027397,2]
[311626896,1705269039447,-500.0,0.00027397,2]
[311626898,1705269039456,-500.0,0.00027397,2]
[311626900,1705269039465,-500.0,0.00027397,2]
[311626901,1705269039476,-620.59724494,0.00027397,2]
[311626903,1705269039485,-500.0,0.00027397,2]
[311626905,1705269039494,-831.57,0.00027397,2]
[311626907,1705269039504,-500.0,0.00027397,2]
[311626909,1705269039513,-500.0,0.00027397,2]
[311626910,1705269039522,-698.57,0.00027397,2]
[311626912,1705269039531,-500.0,0.00027397,2]
[311626913,1705269039541,-502.24841496,0.00027397,2]
[311626915,1705269039552,-500.0,0.00027397,2]
[311626917,1705269039562,-500.0,0.00027397,2]
[311626919,1705269039571,-500.0,0.00027397,2]
[311626920,1705269039579,-401.11191083,0.00027397,2]
[311626922,1705269039590,-500.0,0.00027397,2]
[311626923,1705269039600,-500.0,0.00027397,2]
[311626924,1705269039609,-500.0,0.00027397,2]
[311626925,1705269039619,-500.0,0.00027397,2]
[311626926,1705269039628,-500.0,0.00027397,2]
[311626927,1705269039638,-500.0,0.00027397,2]
[311626928,1705269039648,-500.0,0.00027397,2]
[311626929,1705269039657,-534.86153431,0.00027397,2]
[311626930,1705269039667,-500.0,0.00027397,2]
[311626931,1705269039676,-500.0,0.00027397,2]
[311626932,1705269039685,-500.0,0.00027397,2]
[311626933,1705269039694,-500.0,0.00027397,2]
[311626934,1705269039703,-500.0,0.00027397,2]
[311626936,1705269039713,-200.29082634,0.00027397,2]
[311626937,1705269039722,-500.0,0.00027397,2]
[311626938,1705269039731,-500.0,0.00027397,2]
[311626939,1705269039741,-500.0,0.00027397,2]
[311626940,1705269039750,-500.0,0.00027397,2]
[311626941,1705269039759,-1826.62,0.00027397,2]
[311626942,1705269039768,-2452.34,0.00027397,2]
[311626943,1705269039778,-500.0,0.00027397,2]
[311626944,1705269039787,-500.0,0.00027397,2]
[311626945,1705269039797,-500.0,0.00027397,2]
[311626946,1705269039806,-500.0,0.00027397,2]
[311626947,1705269039815,-537.38332628,0.00027397,2]
[311626948,1705269039824,-500.0,0.00027397,2]
[311626949,1705269039833,-500.0,0.00027397,2]
[311626950,1705269039842,-1480.16,0.00027397,2]
[311626951,1705269039851,-500.0,0.00027397,2]
[311626952,1705269039861,-500.0,0.00027397,2]
[311626953,1705269039870,-500.0,0.00027397,2]
[311626954,1705269039878,-500.0,0.00027397,2]
[311626955,1705269039887,-500.0,0.00027397,2]
[311626956,1705269039896,-2708.36,0.00027397,2]
[311626957,1705269039905,-500.0,0.00027397,2]
[311626958,1705269039914,-500.0,0.00027397,2]
[311626959,1705269039923,-702.69,0.00027397,2]
[311626960,1705269039933,-500.0,0.00027397,2]
[311626961,1705269039942,-500.0,0.00027397,2]
[311626962,1705269039952,-500.0,0.00027397,2]
[311626963,1705269039961,-500.0,0.00027397,2]
[311626964,1705269039970,-500.0,0.00027397,2]
[311626967,1705269039979,-876.61,0.00027397,2]
[311626969,1705269040082,-512.92548497,0.00027397,2]
[311626971,1705269040091,-349.82002498,0.00027397,2]
[311626973,1705269040101,-500.0,0.00027397,2]
[311626975,1705269040110,-500.0,0.00027397,2]
[311626976,1705269040118,-500.0,0.00027397,2]
[311626978,1705269040127,-376.85988352,0.00027397,2]
[311626980,1705269040137,-500.0,0.00027397,2]
[311626982,1705269040146,-500.0,0.00027397,2]
[311626984,1705269040155,-500.0,0.00027397,2]
[311626986,1705269040165,-225.46911807,0.00027397,2]
[311626988,1705269040175,-500.0,0.00027397,2]
[311626990,1705269040184,-500.0,0.00027397,2]
[311626992,1705269040192,-500.0,0.00027397,2]
[311626994,1705269040201,-500.0,0.00027397,2]
[311626996,1705269040210,-500.0,0.00027397,2]
[311626998,1705269040219,-500.0,0.00027397,2]
[311627000,1705269040228,-500.0,0.00027397,2]
[311627002,1705269040237,-500.0,0.00027397,2]
[311627004,1705269040246,-500.0,0.00027397,2]
[311627006,1705269040255,-325.550196,0.00027397,2]
[311627008,1705269040264,-500.0,0.00027397,2]
[311627010,1705269040274,-500.0,0.00027397,2]
[311627012,1705269040283,-500.0,0.00027397,2]
[311627014,1705269040293,-500.0,0.00027397,2]
[311627016,1705269040302,-500.0,0.00027397,2]
[311627017,1705269040312,-287.40897555,0.00027397,2]
[311627020,1705269040321,-1000.0,0.00027397,2]
[311627021,1705269040330,-500.0,0.00027397,2]
[311627023,1705269040339,-500.0,0.00027397,2]
[311627025,1705269040349,-500.0,0.00027397,2]
[311627027,1705269040359,-500.0,0.00027397,2]
[311627028,1705269040369,-500.0,0.00027397,2]
[311627029,1705269040378,-500.0,0.00027397,2]
[311627031,1705269040387,-500.0,0.00027397,2]
[311627033,1705269040397,-500.0,0.00027397,2]
[311627035,1705269040406,-500.0,0.00027397,2]
[311627037,1705269040415,-668.42,0.00027397,2]
[311627039,1705269040424,-500.0,0.00027397,2]
[311627041,1705269040433,-500.0,0.00027397,2]
[311627043,1705269040443,-500.0,0.00027397,2]
[311627044,1705269040452,-500.0,0.00027397,2]
[311627045,1705269040461,-500.0,0.00027397,2]
[311627046,1705269040469,-500.0,0.00027397,2]
[311627047,1705269040479,-523.53850014,0.00027397,2]
[311627048,1705269040488,-572.49159193,0.00027397,2]
[311627049,1705269040497,-500.0,0.00027397,2]
[311627050,1705269040506,-1323.32,0.00027397,2]
[311627051,1705269040515,-500.0,0.00027397,2]
[311627052,1705269040524,-500.94425722,0.00027397,2]
[311627053,1705269040533,-500.0,0.00027397,2]
[311627054,1705269040542,-579.92326202,0.00027397,2]
[311627055,1705269040552,-561.28,0.00027397,2]
[311627056,1705269040565,-500.0,0.00027397,2]
[311627057,1705269040574,-500.0,0.00027397,2]
[311627058,1705269040583,-500.0,0.00027397,2]
[311627059,1705269040592,-500.0,0.00027397,2]
[311627060,1705269040603,-500.0,0.00027397,2]
[311627061,1705269040612,-1181.68,0.00027397,2]
[311627062,1705269040621,-500.0,0.00027397,2]
[311627063,1705269040633,-500.0,0.00027397,2]
[311627064,1705269040642,-500.0,0.00027397,2]
[311627065,1705269040651,-500.0,0.00027397,2]
[311627066,1705269040660,-1537.26,0.00027397,2]
[311627067,1705269040669,-500.0,0.00027397,2]
[311627068,1705269040678,-500.0,0.00027397,2]
[311627069,1705269040687,-500.0,0.00027397,2]
[311627070,1705269040697,-500.68191644,0.00027397,2]
[311627071,1705269040706,-606.26,0.00027397,2]
[311627072,1705269040715,-2716.41,0.00027397,2]
[311627073,1705269040724,-500.0,0.00027397,2]
[311627074,1705269040734,-728.35,0.00027397,2]
[311627075,1705269040743,-501.91288507,0.00027397,2]
[311627076,1705269040753,-500.0,0.00027397,2]
[311627077,1705269040763,-500.0,0.00027397,2]
[311627078,1705269040772,-505.86534392,0.00027397,2]
[311627079,1705269040781,-500.0,0.00027397,2]
[311627080,1705269040791,-500.0,0.00027397,2]
[311627081,1705269040800,-544.83777712,0.00027397,2]
[311627082,1705269040810,-500.0,0.00027397,2]
[311627083,1705269040819,-868.3,0.00027397,2]
[311627084,1705269040828,-500.0,0.00027397,2]
[311627085,1705269040837,-500.0,0.00027397,2]
[311627087,1705269040847,-500.0,0.00027397,2]
[311627089,1705269040859,-500.0,0.00027397,2]